bitfinex-derivatives/quotes_ETHF0:USTF0_20251031
["timestamp","ask_amount","ask_price","bid_price","bid_amount"]
[1761917957547,3.5225,3846.4,3845.3,12.8968]
[1761917957752,3.5225,3846.4,3845.3,13.2246]
[1761917958051,0.3147,3846.4,3845.9,3.2078]
[1761917958252,3.5225,3846.4,3845.5,3.2078]
[1761917958973,0.3147,3846.4,3845.9,3.2078]
[1761917959372,0.3147,3846.4,3845.4,3.2078]
[1761917959571,0.3147,3846.4,3845.8,3.2078]
[1761917959974,3.2078,3847.0,3846.3,0.0161]
[1761917960168,0.35902026,3847.2,3846.5,3.5355]
[1761917960369,0.35902026,3847.2,3846.9,3.2078]
[1761917960665,0.35902026,3847.2,3846.5,13.1685]
[1761917961273,0.35902026,3847.2,3846.5,12.8408]
[1761917963471,0.35902026,3847.2,3846.5,3.2078]
[1761917963676,0.35902026,3847.2,3846.6,9.721]
[1761917963976,0.35902026,3847.2,3845.8,40.8]
[1761917963977,3.56682026,3847.2,3846.0,9.721]
[1761917964178,0.3568,3846.4,3846.0,9.721]
[1761917964382,0.3568,3846.4,3845.8,3.2078]
[1761917964584,0.3568,3846.4,3845.9,5.136]
[1761917964781,3.5646,3846.4,3845.9,5.136]
[1761917965175,0.3568,3846.4,3845.8,3.2078]
[1761917965482,3.2078,3846.9,3845.8,12.9368]
[1761917965981,3.2078,3846.3,3845.8,9.729]
[1761917966175,3.2078,3846.3,3845.4,3.2078]
[1761917966382,3.2078,3846.3,3845.5,6.389]
[1761917966579,3.2078,3845.9,3845.5,6.389]
[1761917967277,3.2078,3846.7,3846.2,0.0348]
[1761917967476,3.56682026,3847.2,3846.3,3.2078]
[1761917967671,3.56682026,3847.2,3846.3,3.53551]
[1761917968978,0.35902026,3847.2,3846.7,3.2078]
[1761917970783,0.35902026,3847.2,3846.2,3.2078]
[1761917970784,3.2078,3847.1,3846.2,3.2078]
[1761917971276,0.35902026,3847.2,3846.6,3.2078]
[1761917971486,3.2078,3847.1,3846.2,3.2078]
[1761917971676,0.3568,3846.5,3846.2,3.2078]
[1761917971879,3.2078,3847.1,3846.2,3.2078]
[1761917972275,0.3568,3846.5,3846.2,3.2078]
[1761917972476,0.6088,3846.3,3845.8,3.2078]
[1761917972782,3.8166,3846.3,3845.4,9.5958]
[1761917973388,0.6088,3846.3,3845.8,3.2078]
[1761917973979,0.3568,3846.5,3845.8,3.2078]
[1761917974381,0.3568,3846.5,3845.4,12.9608]
[1761917974885,0.35902026,3847.2,3846.6,0.0348]
[1761917975074,3.2078,3847.1,3846.5,9.747]
[1761917975280,0.35902026,3847.2,3846.5,9.747]
[1761917975582,3.2078,3847.1,3846.5,9.772]
[1761917975782,0.35902026,3847.2,3846.5,9.772]
[1761917975982,0.35902026,3847.2,3846.4,3.2078]
[1761917976188,0.35902026,3847.2,3846.5,9.77]
[1761917976896,0.9656,3846.5,3845.9,9.768]
[1761917977188,0.3568,3846.5,3846.2,3.2078]
[1761917977380,0.3568,3846.5,3846.3,3.2078]
[1761917977789,0.3568,3846.5,3846.0,9.767]
[1761917978085,3.2078,3846.7,3846.0,10.69197385]
[1761917978288,0.3568,3846.5,3845.8,13.89177385]
[1761917978485,0.3568,3846.5,3845.8,0.92497385]
[1761917978690,0.3568,3846.5,3845.7,0.92497385]
[1761917978691,0.3568,3845.8,3845.7,0.92497385]
[1761917978890,0.3568,3845.8,3845.6,9.757]
[1761917979194,0.3568,3845.8,3845.6,10.68197385]
[1761917979887,0.3568,3845.8,3845.6,0.92497385]
[1761917980188,3.2078,3846.7,3846.2,0.0348]
[1761917980591,3.2078,3846.7,3846.2,0.96748442]
[1761917980792,3.2078,3846.7,3846.3,0.93268442]
[1761917980992,3.2078,3846.7,3846.2,0.93268442]
[1761917981296,3.2078,3846.7,3846.3,0.93268442]
[1761917981786,0.3446,3846.5,3846.1,0.93268442]
[1761917982186,0.6021,3846.0,3845.9,0.93268442]
[1761917982387,0.6021,3845.9,3845.8,0.93268442]
[1761917982583,0.3446,3845.8,3845.6,0.93268442]
[1761917982792,0.3446,3846.5,3845.6,0.93268442]
[1761917982992,0.3446,3846.5,3845.8,3.2078]
[1761917983498,0.3446,3846.5,3845.6,0.93268442]
[1761917983698,0.3446,3845.8,3845.6,0.93268442]
[1761917983995,0.3446,3845.8,3845.5,0.93268442]
[1761917984393,0.6021,3845.4,3845.3,0.93511829]
[1761917984607,0.6021,3845.4,3845.3,0.00243387]
[1761917985189,0.3446,3845.8,3845.3,0.00243387]
[1761917986592,0.3446,3845.8,3845.6,3.2078]
[1761917986897,3.2078,3846.3,3845.6,4.14048442]
[1761917987102,3.2078,3846.3,3845.6,3.2078]
[1761917987601,3.2078,3846.3,3845.5,10.68968442]
[1761917988401,0.3446,3845.8,3845.5,10.68968442]
[1761917988700,0.3446,3845.8,3845.5,9.757]
[1761917989291,0.3446,3845.8,3845.3,0.93511829]
[1761917989490,0.3446,3845.8,3845.3,0.00243387]
[1761917989896,3.8099,3845.4,3845.3,0.00243387]
[1761917991498,3.8099,3845.4,3844.5,10.65868442]
[1761917991499,0.3446,3845.1,3844.5,10.65868442]
[1761917991697,0.6021,3844.2,3844.1,0.9328555]
[1761917991903,0.3446,3844.4,3843.9,9.724]
[1761917992601,0.34701288,3844.4,3844.0,3.2078]
[1761917994202,0.34701288,3844.4,3843.9,0.00237296]
[1761917994603,0.34701288,3844.4,3844.0,9.712]
[1761917995703,0.34701288,3844.4,3843.9,0.00237296]
[1761917995907,0.00241288,3844.4,3843.9,0.00237296]
[1761917996094,0.34701288,3844.4,3844.0,3.2078]
[1761918000000,0.00241288,3844.4,3844.0,3.2078]
[1761918000203,3.5524,3845.1,3844.0,3.2078]
[1761918000399,0.3446,3844.2,3844.1,9.701]
[1761918000798,0.6021,3844.0,3843.9,0.00237296]
[1761918001210,0.3446,3844.2,3843.9,0.00237296]
[1761918001414,0.00241151,3844.0,3843.9,0.00237296]
[1761918001914,0.3446,3844.8,3843.9,3.21017296]
[1761918002105,0.3446,3844.2,3843.9,3.21017296]
[1761918002504,0.3446,3844.2,3843.9,0.00237296]
[1761918003013,0.34781069,3844.2,3843.9,0.00237296]
[1761918003308,0.34781069,3844.2,3843.0,1.38621384]
[1761918003309,0.3446,3843.6,3843.1,0.9328555]
[1761918003610,0.3446,3843.0,3842.9,9.692]
[1761918003805,0.3446,3843.0,3842.7,3.2078]
[1761918004008,0.3446,3843.0,3842.3,3.2078]
[1761918004402,0.3446,3842.3,3841.6,10.6228555]
[1761918004608,3.2078,3842.2,3841.6,9.69]
[1761918005106,0.3446,3843.0,3841.6,13.83329109]
[1761918005313,0.3446,3843.0,3842.2,3.2078]
[1761918005508,3.5524,3842.3,3841.6,0.00263559]
[1761918005710,0.3446,3842.3,3841.9,9.685]
[1761918006216,0.3446,3842.3,3841.7,3.2078]
[1761918006417,0.3446,3842.3,3841.7,12.8918]
[1761918006810,0.3446,3843.0,3842.2,3.2078]
[1761918007318,0.3446,3843.0,3842.3,3.2078]
[1761918008012,0.3446,3843.0,3841.9,3.2078]
[1761918008313,3.2078,3842.9,3841.9,3.2078]
[1761918008619,0.3446,3842.3,3841.9,3.2078]
[1761918009214,0.3446,3842.3,3841.6,0.00263559]
[1761918009215,0.3446,3842.3,3841.6,9.67063559]
[1761918009615,0.3446,3842.3,3841.6,9.99874559]
[1761918009816,0.3446,3842.3,3841.6,9.67063559]
[1761918010712,0.3446,3842.3,3841.9,3.2078]
[1761918010912,0.3446,3842.3,3841.6,9.67063559]
[1761918011417,0.3446,3842.3,3842.0,3.2078]
[1761918011611,0.3446,3842.3,3841.6,3.21043559]
[1761918012018,3.2078,3842.1,3841.6,0.00263559]
[1761918012911,0.3446,3842.3,3841.6,0.00263559]
[1761918013421,3.2078,3842.1,3841.6,0.00263559]
[1761918013818,0.6021,3841.7,3841.6,0.00263559]
[1761918014009,3.8099,3841.7,3841.6,0.00263559]
[1761918014215,0.3329,3840.9,3840.4,3.2078]
[1761918015119,0.3329,3840.9,3840.0,6.265]
[1761918015120,0.3329,3840.9,3840.0,9.4728]
[1761918015318,0.33534816,3840.9,3840.4,0.00205479]
[1761918016316,0.33534816,3840.9,3840.4,0.33027479]
[1761918016517,0.33534816,3840.9,3840.4,3.20985479]
[1761918016814,3.5407,3841.6,3840.8,3.2078]
[1761918017014,3.5407,3841.6,3840.8,9.637]
[1761918017211,3.2078,3841.5,3840.5,0.04531725]
[1761918017411,0.3329,3840.9,3840.5,10.00751725]
[1761918017925,0.3329,3840.9,3840.4,3.20985479]
[1761918017926,0.28384996,3840.9,3840.8,3.2078]
[1761918018116,0.28384996,3840.9,3840.4,3.20985479]
[1761918019524,0.28384996,3840.9,3840.8,3.2078]
[1761918020517,0.28384996,3840.9,3840.5,0.32821]
[1761918020723,0.28384996,3840.9,3840.4,3.20985479]
[1761918021322,4.996e-05,3840.9,3840.8,3.2078]
[1761918021728,4.996e-05,3840.9,3840.8,12.8208]
[1761918022936,0.3446,3842.3,3840.8,12.8208]
[1761918023138,0.3446,3842.3,3841.8,3.2078]
[1761918023646,0.3446,3842.3,3841.5,9.607]
[1761918023939,0.2811,3841.8,3841.3,3.2078]
[1761918024141,0.2811,3841.8,3841.3,9.617]
[1761918026048,0.2811,3841.8,3840.7,3.2078]
[1761918026243,0.2811,3841.2,3840.7,3.2078]
[1761918026535,0.2811,3840.6,3840.4,0.00205479]
[1761918029835,0.2811,3840.6,3840.4,3.20985479]
[1761918030347,0.5018,3840.5,3840.4,0.00205479]
[1761918030547,0.2811,3840.6,3840.4,0.00205479]
[1761918032847,0.5018,3840.5,3839.7,0.02604404]
[1761918033055,0.2811,3840.0,3839.8,3.2078]
[1761918033251,0.2811,3840.6,3839.8,3.2078]
[1761918033845,0.2811,3840.6,3839.8,3.21015011]
[1761918034039,0.2811,3840.6,3839.7,0.02604404]
[1761918034040,0.5018,3839.9,3839.7,0.02604404]
[1761918034245,0.2811,3840.0,3839.7,0.02604404]
[1761918034246,3.7096,3839.8,3839.7,0.02604404]
[1761918035355,3.7096,3839.8,3839.7,0.02918491]
[1761918035556,3.7096,3839.8,3838.4,7.79680622]
[1761918035557,0.2811,3838.8,3838.4,0.04533679]
[1761918035752,0.2811,3838.8,3838.2,3.2078]
[1761918036153,0.2811,3838.8,3838.2,3.4180243]
[1761918036661,0.00215902,3838.8,3838.6,3.2078]
[1761918036848,0.28325902,3838.8,3838.2,0.0023614]
[1761918037354,0.28325902,3838.8,3838.4,3.2078]
[1761918038761,0.28325902,3838.8,3838.3,3.2078]
[1761918038965,0.00215902,3838.8,3838.7,3.2078]
[1761918039258,3.2078,3839.8,3838.7,3.2078]
[1761918039451,0.2811,3839.4,3838.8,9.625]
[1761918040558,0.2811,3839.4,3838.8,9.624]
[1761918040950,0.2811,3839.4,3838.9,9.626]
[1761918041353,0.28375631,3839.4,3838.7,3.53616]
[1761918041553,0.00265631,3839.4,3839.1,3.2078]
[1761918041755,0.29955631,3839.4,3839.1,3.2078]
[1761918042156,0.29955631,3839.4,3838.9,9.621]
[1761918042351,0.2811,3840.0,3839.2,0.32832]
[1761918042657,0.2811,3840.0,3839.6,3.2078]
[1761918043060,0.2811,3840.0,3839.0,3.2078]
[1761918043260,0.2811,3840.0,3839.4,3.2078]
[1761918043460,0.2811,3840.0,3839.9,3.2078]
[1761918043655,0.28441086,3840.0,3839.9,3.2078]
[1761918044060,0.28441086,3840.0,3839.2,3.2078]
[1761918044359,0.00331086,3840.0,3839.2,3.2078]
[1761918044560,0.2969,3839.4,3839.1,4.1406555]
[1761918044864,0.2969,3839.4,3839.1,3.2078]
[1761918045370,0.2969,3839.4,3838.8,9.61]
[1761918045863,0.2969,3838.8,3838.7,3.2078]
[1761918046056,0.2969,3839.4,3838.7,3.2078]
[1761918046263,0.2969,3839.4,3839.1,3.2078]
[1761918046863,0.30021086,3840.0,3839.1,3.2078]
[1761918048960,0.2969,3839.4,3839.1,3.2078]
[1761918049962,3.2078,3839.9,3839.1,3.2078]
[1761918051065,3.2078,3840.8,3839.5,3.2078]
[1761918051263,0.09706766,3841.2,3841.0,0.32816]
[1761918051468,0.09706766,3841.2,3839.7,8.20692]
[1761918051469,0.09706766,3841.2,3841.1,12.8938]
[1761918051664,0.2969,3841.8,3841.2,0.32815]
[1761918051858,0.2969,3841.8,3841.7,3.2078]
[1761918052054,0.29921531,3841.8,3841.7,3.21020773]
[1761918052259,0.29921531,3841.8,3841.7,12.90320773]
[1761918052962,0.2969,3842.4,3841.7,13.23130773]
[1761918053164,0.2969,3842.4,3842.3,3.2078]
[1761918054271,0.29995695,3842.4,3842.3,3.2078]
[1761918054460,0.29995695,3842.4,3842.3,12.9028]
[1761918054865,0.29995695,3842.4,3841.9,0.9328555]
[1761918055059,0.29995695,3842.4,3842.3,3.2078]
[1761918057858,0.29995695,3842.4,3842.3,12.8798]
[1761918058360,0.29995695,3842.4,3842.3,12.8788]
[1761918058563,0.2969,3843.7,3842.3,12.8788]
[1761918058962,0.2969,3843.7,3842.9,3.2078]
[1761918059163,0.2969,3843.7,3842.9,12.8738]
[1761918059870,0.29941321,3843.0,3842.9,12.8738]
[1761918060260,0.2969,3843.0,3842.9,13.20181]
[1761918060458,0.2969,3843.7,3843.6,0.32795]
[1761918060661,0.2969,3843.7,3843.6,12.8938]
[1761918061064,0.2969,3844.4,3843.6,12.8938]
[1761918061373,0.2969,3844.4,3844.3,3.2078]
[1761918061577,0.2969,3844.4,3844.3,12.8908]
[1761918061969,0.30007173,3844.4,3844.3,12.8908]
[1761918065068,0.30007173,3844.4,3844.3,12.8678]
[1761918066068,0.00317173,3844.4,3844.3,12.8678]
[1761918066268,0.2969,3845.8,3844.3,12.8678]
[1761918066566,0.2969,3845.8,3845.0,3.2078]
[1761918066765,0.2969,3845.8,3845.0,12.8578]
[1761918067574,0.29973073,3845.1,3845.0,12.86049455]
[1761918069878,0.77643073,3845.1,3845.0,3.21049455]
[1761918070066,0.4767,3844.7,3844.6,12.8368]
[1761918070373,0.29973073,3845.1,3844.6,12.8368]
[1761918071867,0.4767,3844.7,3844.6,12.8368]
[1761918072263,0.29973073,3845.1,3844.6,12.8368]
[1761918072970,0.29973073,3845.1,3844.6,12.8396926]
[1761918074276,0.4244,3844.7,3844.6,3.2106926]
[1761918074574,0.2969,3845.8,3844.6,3.2106926]
[1761918074575,0.2708,3845.8,3844.9,0.32783]
[1761918074781,0.2708,3845.8,3845.4,3.2078]
[1761918075081,0.2708,3845.8,3845.5,9.655]
[1761918075483,0.2708,3845.8,3845.4,3.53559]
[1761918075678,0.2708,3845.8,3845.5,9.654]
[1761918076074,0.27402125,3845.8,3845.5,9.654]
[1761918076980,0.4244,3845.5,3845.4,3.2078]
[1761918077282,0.27402125,3845.8,3845.4,3.2078]
[1761918078479,0.4244,3845.5,3845.4,3.2078]
[1761918079971,0.8877,3845.1,3844.9,3.2078]
[1761918080170,0.5527,3845.0,3844.6,0.0028926]
[1761918080373,0.5527,3844.2,3844.1,3.2078]
[1761918081185,0.335,3844.4,3844.1,3.2078]
[1761918082079,0.335,3844.4,3844.2,9.645]
[1761918082479,0.335,3844.4,3844.2,9.64755765]
[1761918083589,0.335,3845.1,3844.8,0.32784]
[1761918083777,0.335,3845.1,3845.0,3.2078]
[1761918084985,0.8877,3845.1,3845.0,12.9308]
[1761918085479,0.8877,3845.1,3845.0,3.2078]
[1761918085786,0.8877,3845.1,3844.6,3.2078]
[1761918085980,0.8877,3845.1,3844.6,8.1868]
[1761918085981,0.5527,3844.7,3844.6,8.1868]
[1761918086676,0.335,3845.1,3844.6,8.1868]
[1761918086878,0.5527,3844.7,3844.6,8.1868]
[1761918087381,0.63404499,3844.7,3844.6,8.1868]
[1761918087582,0.5527,3844.3,3844.2,0.00255765]
[1761918087776,0.63404499,3844.3,3844.2,0.00255765]
[1761918089083,0.63406129,3844.3,3844.2,0.00255765]
[1761918089279,0.335,3844.4,3844.2,0.00255765]
[1761918089483,0.335,3844.4,3844.3,12.9318]
[1761918091189,0.335,3844.4,3844.3,3.2078]
[1761918091386,0.335,3844.4,3844.3,12.9988]
[1761918093186,0.335,3844.4,3844.3,12.9878]
[1761918094184,0.8877,3844.4,3844.3,3.2078]
[1761918094387,0.8877,3844.4,3844.3,12.9768]
[1761918095092,0.335,3844.4,3844.3,12.9768]
[1761918097591,0.335,3844.4,3844.3,13.30469]
[1761918098598,0.335,3844.4,3844.3,12.9768]
[1761918099081,0.335,3844.4,3844.3,13.90870822]
[1761918099287,0.335,3844.4,3844.3,12.9768]
[1761918099793,0.8877,3844.4,3844.3,13.90870822]
[1761918099993,0.335,3844.4,3844.3,12.9768]
[1761918100492,0.335,3844.4,3844.3,12.9398]
[1761918102297,0.335,3844.4,3844.3,12.9428]
[1761918102989,0.335,3844.4,3844.3,12.9388]
[1761918104091,0.335,3844.4,3844.3,4.60452863]
[1761918104298,0.9189,3844.4,3844.3,12.9318]
[1761918105392,0.335,3844.4,3844.3,12.9318]
[1761918105898,0.335,3844.4,3844.3,13.86314442]
[1761918106197,0.335,3844.4,3844.3,12.9318]
[1761918107290,0.9189,3844.4,3844.3,3.2078]
[1761918107596,0.335,3844.4,3844.3,12.9218]
[1761918108189,0.335,3844.4,3844.3,13.8539044]
[1761918108790,0.335,3844.4,3844.3,12.9218]
[1761918110392,0.335,3844.4,3844.3,14.32054602]
[1761918111602,0.9189,3844.4,3844.3,14.32054602]
[1761918111796,0.9189,3844.4,3844.3,12.9218]
[1761918112199,0.9189,3844.4,3844.3,12.8988]
[1761918113200,8.9189,3844.4,3844.3,3.2078]
[1761918113591,0.5839,3844.3,3844.2,0.00255765]
[1761918114206,0.5839,3843.9,3843.8,0.93304935]
[1761918114389,0.9214,3843.7,3843.5,4.14084935]
[1761918114593,0.5839,3843.6,3843.5,3.2078]
[1761918114795,0.5839,3843.6,3843.5,12.8838]
[1761918115299,0.5839,3843.6,3843.5,12.88674403]
[1761918115800,0.5839,3843.6,3843.5,3.21074403]
[1761918115998,0.5839,3843.6,3843.5,0.00294403]
[1761918116391,0.3375,3843.7,3843.5,3.21074403]
[1761918116590,0.3375,3843.7,3843.6,3.2078]
[1761918117891,0.9214,3843.7,3843.6,3.2078]
[1761918118289,0.5839,3843.6,3843.5,0.00294403]
[1761918118500,0.5839,3843.6,3843.5,4.403e-05]
[1761918120603,0.5839,3842.7,3842.6,3.2078]
[1761918121594,0.5839,3842.7,3842.2,3.2078]
[1761918121799,0.9214,3842.3,3842.2,3.2078]
[1761918122004,0.9214,3842.3,3842.2,3.21088166]
[1761918122706,0.3375,3842.3,3842.2,3.21088166]
[1761918122906,0.3375,3842.3,3842.2,12.85888166]
[1761918123610,0.9214,3842.3,3842.2,3.21088166]
[1761918123907,0.9214,3842.3,3842.2,12.85688166]
[1761918124303,0.3375,3842.3,3842.2,12.85688166]
[1761918126211,0.00336215,3842.7,3842.4,0.32804]
[1761918126406,0.00336215,3842.7,3842.6,3.2078]
[1761918126601,0.3375,3843.0,3842.6,3.2078]
[1761918126808,0.3375,3843.0,3842.7,9.645]
[1761918127303,0.3375,3843.0,3842.7,10.90606935]
[1761918127610,0.3375,3843.0,3842.9,0.32801]
[1761918128005,0.33998855,3843.0,3842.7,9.645]
[1761918128407,0.33998855,3843.0,3842.9,0.32801]
[1761918128907,0.33998855,3843.0,3842.8,0.93304935]
[1761918129814,0.33998855,3843.0,3842.9,9.643]
[1761918131305,0.33998855,3843.0,3842.9,9.97101]
[1761918131712,0.3375,3843.7,3843.5,0.32796]
[1761918131911,0.3375,3843.7,3843.6,12.8428]
[1761918132313,0.3375,3843.7,3843.6,13.77038922]
[1761918132812,0.8815,3843.7,3843.6,3.2078]
[1761918133008,0.88482654,3843.7,3843.6,3.2078]
[1761918133910,0.544,3843.6,3843.5,9.628]
[1761918134517,0.544,3843.3,3843.2,12.8358]
[1761918134918,0.2984,3843.0,3842.8,3.2078]
[1761918135214,0.2984,3843.0,3842.8,12.8278]
[1761918135612,0.544,3842.9,3842.8,9.62]
[1761918136018,0.544,3842.5,3842.4,3.2078]
[1761918136313,0.544,3842.5,3842.4,12.8268]
[1761918136905,0.2984,3843.0,3842.4,12.8268]
[1761918137111,0.2984,3843.0,3842.8,3.2078]
[1761918137606,0.2984,3843.0,3842.4,12.8218]
[1761918137913,0.8424,3843.0,3842.9,3.2078]
[1761918138519,0.4781,3842.6,3842.5,3.2078]
[1761918138726,0.2984,3843.0,3842.5,3.2078]
[1761918139020,0.7765,3843.0,3842.9,3.2078]
[1761918139523,0.2984,3843.0,3842.9,3.2078]
[1761918139909,0.2984,3843.0,3842.9,12.8178]
[1761918140223,0.7765,3843.0,3842.9,12.8178]
[1761918140821,0.2984,3843.0,3842.9,12.8178]
[1761918142014,0.7765,3843.0,3842.9,12.8178]
[1761918144212,0.4781,3842.5,3842.4,4.13538922]
[1761918144417,0.4781,3842.5,3842.4,3.2078]
[1761918146120,0.4781,3842.5,3842.3,9.611]
[1761918146121,0.2863,3842.4,3842.3,9.611]
[1761918146319,0.4781,3842.3,3842.2,0.00308166]
[1761918146625,0.4781,3842.3,3842.2,9.61408166]
[1761918147322,0.2863,3842.4,3842.2,0.00308166]
[1761918147519,0.2863,3842.4,3842.2,9.61408166]
[1761918150327,0.4781,3842.3,3842.2,0.00308166]
[1761918150621,0.4781,3842.3,3841.4,3.2078]
[1761918150622,0.4781,3841.7,3841.4,3.2078]
[1761918150829,0.2863,3841.8,3841.4,11.6028]
[1761918150830,0.4781,3841.5,3841.4,11.6028]
[1761918151027,0.4781,3841.5,3841.4,3.2078]
[1761918151526,0.4781,3841.5,3841.4,3.21011515]
[1761918152023,0.4781,3841.5,3841.4,0.00231515]
[1761918152623,3.6859,3841.5,3841.4,0.00231515]
[1761918152922,3.6859,3841.5,3840.9,9.61]
[1761918152923,0.4781,3841.0,3840.9,9.61]
[1761918153526,0.4781,3840.9,3840.8,0.15535]
[1761918153927,0.48030817,3840.9,3840.8,0.15790621]
[1761918155027,0.00220817,3840.9,3840.8,0.15790621]
[1761918156324,0.48030817,3840.9,3840.8,0.15790621]
[1761918156725,0.00220817,3840.9,3840.8,0.15790621]
[1761918157822,0.2863,3841.2,3840.8,0.15790621]
[1761918158022,0.2863,3841.2,3841.1,3.2078]
[1761918158824,0.28820103,3841.2,3841.1,3.2078]
[1761918159337,0.4781,3840.9,3840.8,0.15790621]
[1761918163530,0.2697,3840.0,3839.9,3.2078]
[1761918164620,0.2697,3840.0,3839.9,3.21112929]
[1761918165334,0.713,3840.0,3839.9,0.00332929]
[1761918166330,3.9208,3840.0,3839.9,0.00332929]
[1761918166530,0.4433,3839.2,3839.1,3.2078]
[1761918166730,0.2697,3839.4,3838.0,15.626]
[1761918166731,0.2697,3838.8,3838.7,3.2078]
[1761918166928,0.2697,3838.8,3838.3,3.2078]
[1761918167128,0.2697,3838.8,3838.7,3.2078]
[1761918167528,0.2697,3838.8,3838.7,3.21015484]
[1761918168443,0.2697,3838.8,3838.7,3.53852484]
[1761918168842,0.2697,3838.8,3838.7,3.25549364]
[1761918169246,0.2697,3838.8,3838.7,12.82015484]
[1761918170841,0.2697,3838.8,3838.7,13.14852484]
[1761918171435,0.2697,3838.8,3838.7,12.82015484]
[1761918172645,0.2697,3838.8,3838.7,3.21015484]
[1761918172856,0.2697,3838.8,3838.7,12.82115484]
[1761918173949,0.2697,3838.8,3838.7,12.82015484]
[1761918175551,0.2697,3838.8,3838.7,3.21015484]
[1761918175852,0.2697,3838.8,3838.7,12.82015484]
[1761918181551,0.713,3838.8,3838.7,3.21015484]
[1761918181954,0.713,3838.8,3838.7,0.00235484]
[1761918182945,0.713,3838.5,3838.4,9.606]
[1761918183753,0.4433,3837.8,3837.5,0.44657043]
[1761918183952,0.003193,3837.8,3837.5,0.34796086]
[1761918184450,0.4433,3837.6,3837.5,0.34796086]
[1761918184647,0.4433,3837.6,3837.5,6.67696086]
[1761918185155,0.003193,3837.8,3837.5,0.34796086]
[1761918185350,0.4433,3837.6,3837.5,0.34796086]
[1761918185649,0.003193,3837.8,3837.5,0.34796086]
[1761918185851,0.4433,3837.7,3837.6,9.606]
[1761918186045,0.4433,3837.7,3837.5,0.34796086]
[1761918186241,0.4433,3837.7,3837.6,6.596]
[1761918186647,0.003193,3837.8,3837.6,6.596]
[1761918186843,0.003193,3837.8,3837.7,9.605]
[1761918189761,0.4433,3837.6,3837.5,0.34796086]
[1761918189961,0.4433,3837.6,3837.5,9.95296086]
[1761918190163,0.4433,3837.6,3837.5,0.34796086]
[1761918190363,0.4433,3837.6,3837.5,9.95296086]
[1761918191357,0.4433,3837.6,3837.5,9.95196086]
[1761918191959,0.4433,3837.6,3837.5,0.34796086]
[1761918192762,0.4433,3837.6,3837.5,9.95196086]
[1761918192958,0.003193,3837.8,3837.5,9.95196086]
[1761918193260,0.003193,3837.8,3837.5,10.28043086]
[1761918193562,0.003193,3837.8,3837.6,0.32845]
[1761918193757,0.2697,3838.0,3837.5,9.99731301]
[1761918193958,0.2697,3838.0,3837.9,3.53624]
[1761918194159,0.2697,3838.0,3837.9,13.13924]
[1761918194357,0.2697,3838.5,3837.9,12.8108]
[1761918194563,0.2697,3838.5,3838.4,3.2078]
[1761918194762,0.1732974,3838.8,3838.5,0.32838]
[1761918194961,0.2499,3838.5,3838.4,12.8108]
[1761918195159,0.2499,3838.5,3838.4,3.2078]
[1761918195463,0.2499,3838.5,3838.4,12.8108]
[1761918195659,0.25204873,3838.5,3838.4,9.603]
[1761918195859,0.25204873,3838.5,3838.4,12.8108]
[1761918196062,0.25204873,3838.5,3838.4,3.2078]
[1761918196261,0.25204873,3838.5,3838.4,12.8108]
[1761918196466,0.25204873,3838.5,3838.4,3.2078]
[1761918196667,0.25204873,3838.5,3838.4,12.8098]
[1761918196864,0.25204873,3838.5,3838.4,3.2078]
[1761918197057,0.25204873,3838.5,3838.4,12.8098]
[1761918198662,0.25204873,3838.5,3838.4,13.13819]
[1761918198859,0.25204873,3838.5,3838.4,12.8098]
[1761918200067,0.25204873,3838.5,3838.4,13.74274299]
[1761918200569,0.25204873,3838.5,3838.4,12.8088]
[1761918201867,0.2697,3839.4,3838.4,14.20018384]
[1761918202162,0.2499,3840.0,3839.8,0.32827]
[1761918202469,0.2499,3840.0,3839.9,12.8068]
[1761918202666,0.2454,3840.6,3839.9,12.8068]
[1761918202860,0.24824548,3840.6,3840.5,3.2078]
[1761918203057,0.24824548,3840.6,3840.5,12.80888962]
[1761918203462,0.24824548,3840.6,3840.5,9.60108962]
[1761918203767,0.24824548,3840.6,3840.5,12.80888962]
[1761918207974,0.24824548,3840.6,3840.5,3.21088962]
[1761918208161,0.24824548,3840.6,3840.5,12.80488962]
[1761918208970,0.24824548,3840.6,3840.5,3.21088962]
[1761918209270,0.24824548,3840.6,3840.5,9.67788962]
[1761918209461,0.24824548,3840.6,3840.5,3.21088962]
[1761918209662,0.24824548,3840.6,3840.5,12.80288962]
[1761918212364,0.24824548,3840.6,3840.5,12.80188962]
[1761918212863,0.24824548,3840.6,3840.5,3.21088962]
[1761918213171,0.24824548,3840.6,3840.5,8.28988962]
[1761918214167,0.65434548,3840.6,3840.5,0.00308962]
[1761918214562,0.65434548,3840.6,3839.5,3.2078]
[1761918214563,0.4069,3839.6,3839.5,3.2078]
[1761918214870,0.4069,3839.6,3839.5,6.1448]
[1761918215168,0.2546,3840.0,3839.1,3.2078]
[1761918215169,0.2546,3839.4,3839.1,3.2078]
[1761918215366,0.4069,3839.2,3839.1,3.2078]
[1761918215569,0.2546,3838.8,3838.7,3.2078]
[1761918215966,0.2546,3838.8,3838.7,12.79855412]
[1761918216269,0.2546,3838.8,3838.7,3.21055412]
[1761918216470,0.2546,3838.8,3838.7,12.79755412]
[1761918217074,0.6615,3838.8,3837.7,4.14022142]
[1761918217369,0.2546,3837.6,3837.5,0.34563745]
[1761918217972,0.6615,3837.6,3837.5,0.34563745]
[1761918218276,0.6645289,3837.6,3837.5,7.08480168]
[1761918218966,0.2576289,3837.6,3837.5,7.08480168]
[1761918219568,0.2576289,3837.6,3837.5,10.29260168]
[1761918219762,0.2576289,3837.6,3837.5,7.08480168]
[1761918220166,0.6645289,3837.6,3837.5,0.34880168]
[1761918220369,0.6645289,3837.6,3837.5,9.93480168]
[1761918221073,0.2576289,3837.6,3837.5,0.34880168]
[1761918221274,0.2576289,3837.6,3837.5,9.93480168]